[Event "Titled Tuesday Blitz June 14 Late 2022"]
[White "Dubov, Daniil"]
[Black "Vasquez Schroeder, Rodrigo"]
[WhiteFideId "24126055"]
[BlackFideId "3400042"]
[WhiteElo "2791"]
[BlackElo "2567"]
[Result "0-1"]
[Round "03"]
[TimeControl "180+1"]
[Date "2022.06.14"]
[WhiteClock "0:00:06"]
[BlackClock "0:00:35"]

1. c4 {[%clk 0:03:00]}  c5 {[%clk 0:02:59]} 2. Nf3 {[%clk 0:02:59]}  Nf6 {[%clk 0:02:59]} 3. Nc3 {[%clk 0:02:58]}  e6 {[%clk 0:03:00]} 4. g3 {[%clk 0:02:57]}  b6 {[%clk 0:03:00]} 5. Bg2 {[%clk 0:02:56]}  Bb7 {[%clk 0:03:01]} 6. O-O {[%clk 0:02:56]}  a6 {[%clk 0:03:01]} 7. Re1 {[%clk 0:02:54]}  d6 {[%clk 0:03:01]} 8. e4 {[%clk 0:02:53]}  Be7 {[%clk 0:03:00]} 9. d4 {[%clk 0:02:53]}  cxd4 {[%clk 0:03:01]} 10. Nxd4 {[%clk 0:02:52]}  Qc7 {[%clk 0:03:01]} 11. b3 {[%clk 0:02:52]}  O-O {[%clk 0:02:56]} 12. Bb2 {[%clk 0:02:52]}  Nbd7 {[%clk 0:02:57]} 13. Rc1 {[%clk 0:02:51]}  Rac8 {[%clk 0:02:56]} 14. h3 {[%clk 0:02:49]}  Rfe8 {[%clk 0:02:55]} 15. Qe2 {[%clk 0:02:48]}  Bf8 {[%clk 0:02:55]} 16. Kh2 {[%clk 0:02:41]}  Qb8 {[%clk 0:02:56]} 17. Rcd1 {[%clk 0:02:37]}  Ba8 {[%clk 0:02:55]} 18. f4 {[%clk 0:02:35]}  Red8 {[%clk 0:02:46]} 19. Rf1 {[%clk 0:02:31]}  g6 {[%clk 0:02:39]} 20. f5 {[%clk 0:02:24]}  Re8 {[%clk 0:02:38]} 21. fxe6 {[%clk 0:01:53]}  fxe6 {[%clk 0:02:38]} 22. e5 {[%clk 0:01:47]}  dxe5 {[%clk 0:02:33]} 23. Nf3 {[%clk 0:01:46]}  Bg7 {[%clk 0:02:16]} 24. Ng5 {[%clk 0:01:45]}  Bxg2 {[%clk 0:02:15]} 25. Qxg2 {[%clk 0:01:44]}  Rcd8 {[%clk 0:02:05]} 26. Nce4 {[%clk 0:01:32]}  Nxe4 {[%clk 0:02:02]} 27. Nxe4 {[%clk 0:01:33]}  Nc5 {[%clk 0:02:00]} 28. b4 {[%clk 0:01:23]}  Rxd1 {[%clk 0:01:53]} 29. Rxd1 {[%clk 0:01:23]}  Nxe4 {[%clk 0:01:49]} 30. Qxe4 {[%clk 0:01:24]}  Rd8 {[%clk 0:01:50]} 31. Rxd8+ {[%clk 0:01:11]}  Qxd8 {[%clk 0:01:50]} 32. Bc3 {[%clk 0:01:10]}  Qd1 {[%clk 0:01:46]} 33. Kg2 {[%clk 0:01:00]}  b5 {[%clk 0:01:39]} 34. c5 {[%clk 0:00:54]}  Kf7 {[%clk 0:01:33]} 35. Be1 {[%clk 0:00:25]}  Qd5 {[%clk 0:01:32]} 36. Kf3 {[%clk 0:00:24]}  Bf6 {[%clk 0:01:24]} 37. Bf2 {[%clk 0:00:22]}  h5 {[%clk 0:01:17]} 38. h4 {[%clk 0:00:21]}  Ke7 {[%clk 0:01:17]} 39. a3 {[%clk 0:00:20]}  Kd7 {[%clk 0:01:17]} 40. Ke3 {[%clk 0:00:16]}  Qb3+ {[%clk 0:01:12]} 41. Qd3+ {[%clk 0:00:15]}  Qd5 {[%clk 0:01:11]} 42. Qxg6 {[%clk 0:00:14]}  Be7 {[%clk 0:00:55]} 43. Qxh5 {[%clk 0:00:09]}  Qb3+ {[%clk 0:00:54]} 44. Ke2 {[%clk 0:00:09]}  Qa2+ {[%clk 0:00:49]} 45. Kf1 {[%clk 0:00:09]}  Qxa3 {[%clk 0:00:49]} 46. Qg4 {[%clk 0:00:09]}  Qc1+ {[%clk 0:00:46]} 47. Kg2 {[%clk 0:00:09]}  Qd2 {[%clk 0:00:46]} 48. h5 {[%clk 0:00:08]}  Qd5+ {[%clk 0:00:46]} 49. Kh2 {[%clk 0:00:07]}  e4 {[%clk 0:00:46]} 50. h6 {[%clk 0:00:07]}  Bf6 {[%clk 0:00:46]} 51. Qg6 {[%clk 0:00:06]}  Qf5 {[%clk 0:00:45]} 52. Qxf5 {[%clk 0:00:05]}  exf5 {[%clk 0:00:45]} 53. Be3 {[%clk 0:00:05]}  a5 {[%clk 0:00:36]} 54. bxa5 {[%clk 0:00:05]}  Kc6 {[%clk 0:00:36]} 55. Kg2 {[%clk 0:00:05]}  b4 {[%clk 0:00:37]} 56. a6 {[%clk 0:00:05]}  b3 {[%clk 0:00:37]} 57. Bc1 {[%clk 0:00:05]}  b2 {[%clk 0:00:36]} 58. Bxb2 {[%clk 0:00:05]}  Bxb2 {[%clk 0:00:37]} 59. a7 {[%clk 0:00:05]}  Kb7 {[%clk 0:00:37]} 60. Kf2 {[%clk 0:00:05]}  Bd4+ {[%clk 0:00:36]} 61. Ke2 {[%clk 0:00:05]}  Kxa7 {[%clk 0:00:37]} 62. h7 {[%clk 0:00:04]}  Kb7 {[%clk 0:00:36]} 63. h8=Q {[%clk 0:00:04]}  Bxh8 {[%clk 0:00:36]} 64. Ke3 {[%clk 0:00:05]}  Be5 {[%clk 0:00:35]} 65. g4 {[%clk 0:00:05]}  fxg4 {[%clk 0:00:35]} 66. Kxe4 {[%clk 0:00:06]}  Bc7 {[%clk 0:00:35]} 0-1


[Site "https://www.chess.com"]

[Event "Titled Tuesday Blitz June 14 Late 2022"]
[White "Florescu, Codrut-Constantin"]
[Black "Yurasova, Daria"]
[WhiteFideId "1202200"]
[BlackFideId "34146919"]
[WhiteElo "2191"]
[BlackElo "2021"]
[Result "1-0"]
[Round "03"]
[TimeControl "180+1"]
[Date "2022.06.15"]
[WhiteClock "0:00:13"]
[BlackClock "0:00:05"]

1. d4 {[%clk 0:03:00]}  d5 {[%clk 0:02:59]} 2. Nf3 {[%clk 0:03:00]}  Nf6 {[%clk 0:02:59]} 3. c4 {[%clk 0:03:01]}  dxc4 {[%clk 0:02:59]} 4. e3 {[%clk 0:03:00]}  e6 {[%clk 0:02:58]} 5. Bxc4 {[%clk 0:03:00]}  a6 {[%clk 0:02:59]} 6. a4 {[%clk 0:02:59]}  c5 {[%clk 0:02:57]} 7. O-O {[%clk 0:02:58]}  Nc6 {[%clk 0:02:57]} 8. Nc3 {[%clk 0:02:57]}  Be7 {[%clk 0:02:54]} 9. Qe2 {[%clk 0:02:50]}  cxd4 {[%clk 0:02:54]} 10. exd4 {[%clk 0:02:50]}  O-O {[%clk 0:02:54]} 11. Rd1 {[%clk 0:02:49]}  Bd7 {[%clk 0:02:54]} 12. Bg5 {[%clk 0:02:48]}  Nb4 {[%clk 0:02:53]} 13. Ne5 {[%clk 0:02:45]}  Bc6 {[%clk 0:02:52]} 14. Nxc6 {[%clk 0:02:17]}  bxc6 {[%clk 0:02:52]} 15. Rac1 {[%clk 0:02:07]}  a5 {[%clk 0:02:38]} 16. Bf4 {[%clk 0:01:55]}  Nbd5 {[%clk 0:02:37]} 17. Be5 {[%clk 0:01:52]}  Qb6 {[%clk 0:02:34]} 18. b3 {[%clk 0:01:45]}  Rad8 {[%clk 0:02:08]} 19. Rd3 {[%clk 0:01:44]}  Nxc3 {[%clk 0:02:05]} 20. Rdxc3 {[%clk 0:01:42]}  Nd5 {[%clk 0:01:49]} 21. Rh3 {[%clk 0:01:41]}  Bf6 {[%clk 0:01:49]} 22. Qh5 {[%clk 0:01:30]}  h6 {[%clk 0:01:43]} 23. Qg4 {[%clk 0:01:29]}  Bxe5 {[%clk 0:01:27]} 24. dxe5 {[%clk 0:01:28]}  Kh8 {[%clk 0:01:14]} 25. Rg3 {[%clk 0:01:20]}  Rg8 {[%clk 0:01:14]} 26. Qe4 {[%clk 0:01:14]}  Ne7 {[%clk 0:01:11]} 27. Rf3 {[%clk 0:01:07]}  Nf5 {[%clk 0:01:03]} 28. g4 {[%clk 0:01:00]}  Rd4 {[%clk 0:00:58]} 29. Qe2 {[%clk 0:00:58]}  Rxg4+ {[%clk 0:00:57]} 30. Kh1 {[%clk 0:00:58]}  Nd4 {[%clk 0:00:55]} 31. Qe3 {[%clk 0:00:57]}  Nxf3 {[%clk 0:00:53]} 32. Qxb6 {[%clk 0:00:55]}  Nxe5 {[%clk 0:00:40]} 33. Be2 {[%clk 0:00:50]}  Re4 {[%clk 0:00:36]} 34. Rc2 {[%clk 0:00:47]}  Ng6 {[%clk 0:00:31]} 35. Qxc6 {[%clk 0:00:36]}  Re5 {[%clk 0:00:30]} 36. Qc7 {[%clk 0:00:30]}  Rf5 {[%clk 0:00:21]} 37. Bd3 {[%clk 0:00:30]}  Rf6 {[%clk 0:00:20]} 38. Bxg6 {[%clk 0:00:30]}  Rxg6 {[%clk 0:00:19]} 39. Qxf7 {[%clk 0:00:29]}  Rf6 {[%clk 0:00:20]} 40. Qc7 {[%clk 0:00:28]}  Rf5 {[%clk 0:00:20]} 41. Kg2 {[%clk 0:00:26]}  Rgf8 {[%clk 0:00:19]} 42. Qd7 {[%clk 0:00:26]}  Rg5+ {[%clk 0:00:19]} 43. Kf1 {[%clk 0:00:25]}  Rf3 {[%clk 0:00:17]} 44. Qxe6 {[%clk 0:00:23]}  Rgf5 {[%clk 0:00:12]} 45. Qe8+ {[%clk 0:00:20]}  Kh7 {[%clk 0:00:13]} 46. Qe4 {[%clk 0:00:20]}  Rf4 {[%clk 0:00:12]} 47. Qd3 {[%clk 0:00:19]}  Rf3 {[%clk 0:00:13]} 48. Qe2 {[%clk 0:00:19]}  Rxb3 {[%clk 0:00:12]} 49. Kg2 {[%clk 0:00:18]}  Rb4 {[%clk 0:00:11]} 50. Qd3 {[%clk 0:00:17]}  Rg4+ {[%clk 0:00:11]} 51. Kf1 {[%clk 0:00:17]}  Rf4 {[%clk 0:00:10]} 52. Rc5 {[%clk 0:00:17]}  Kg6 {[%clk 0:00:09]} 53. Rxf5 {[%clk 0:00:15]}  Rxf5 {[%clk 0:00:10]} 54. f4 {[%clk 0:00:15]}  Kf6 {[%clk 0:00:07]} 55. Qd6+ {[%clk 0:00:15]}  Kf7 {[%clk 0:00:06]} 56. Ke2 {[%clk 0:00:15]}  g6 {[%clk 0:00:07]} 57. Ke3 {[%clk 0:00:15]}  Rf6 {[%clk 0:00:07]} 58. Qd5+ {[%clk 0:00:15]}  Re6+ {[%clk 0:00:06]} 59. Kf3 {[%clk 0:00:14]}  Kf6 {[%clk 0:00:07]} 60. Qxa5 {[%clk 0:00:14]}  Rd6 {[%clk 0:00:05]} 61. Qe5+ {[%clk 0:00:13]} 1-0


[Site "https://www.chess.com"]

[Event "Titled Tuesday Blitz June 14 Late 2022"]
[White "Holt, Conrad"]
[Black "Romanchuk, Viktor"]
[WhiteFideId "2034387"]
[BlackFideId "14109271"]
[WhiteElo "2586"]
[BlackElo "2242"]
[Result "1-0"]
[Round "03"]
[TimeControl "180+1"]
[Date "2022.06.14"]
[WhiteClock "0:00:08"]
[BlackClock "0:00:08"]

1. d4 {[%clk 0:03:00]}  d5 {[%clk 0:02:56]} 2. c4 {[%clk 0:03:00]}  c6 {[%clk 0:02:54]} 3. Nc3 {[%clk 0:03:00]}  Nf6 {[%clk 0:02:53]} 4. e3 {[%clk 0:03:00]}  e6 {[%clk 0:02:54]} 5. Bd3 {[%clk 0:03:00]}  Nbd7 {[%clk 0:02:54]} 6. e4 {[%clk 0:03:00]}  dxe4 {[%clk 0:02:53]} 7. Nxe4 {[%clk 0:03:00]}  c5 {[%clk 0:02:45]} 8. Nf3 {[%clk 0:02:53]}  Nxe4 {[%clk 0:02:43]} 9. Bxe4 {[%clk 0:02:53]}  Nf6 {[%clk 0:02:44]} 10. Bc2 {[%clk 0:02:48]}  cxd4 {[%clk 0:02:44]} 11. O-O {[%clk 0:02:48]}  Bc5 {[%clk 0:02:40]} 12. Bg5 {[%clk 0:02:47]}  h6 {[%clk 0:02:40]} 13. Bh4 {[%clk 0:02:45]}  b6 {[%clk 0:02:39]} 14. Ne5 {[%clk 0:02:40]}  Bb7 {[%clk 0:02:30]} 15. Ba4+ {[%clk 0:02:33]}  Ke7 {[%clk 0:02:30]} 16. Bc6 {[%clk 0:02:08]}  Qc7 {[%clk 0:02:04]} 17. Bg3 {[%clk 0:02:01]}  Bd6 {[%clk 0:01:57]} 18. Bxb7 {[%clk 0:01:44]}  Qxb7 {[%clk 0:01:57]} 19. Qxd4 {[%clk 0:01:35]}  Bc5 {[%clk 0:01:44]} 20. Qc3 {[%clk 0:01:29]}  Rhd8 {[%clk 0:01:39]} 21. Rad1 {[%clk 0:01:07]}  a5 {[%clk 0:01:29]} 22. Nd3 {[%clk 0:00:55]}  Bd4 {[%clk 0:01:14]} 23. Qa3+ {[%clk 0:00:52]}  Ke8 {[%clk 0:01:15]} 24. c5 {[%clk 0:00:44]}  bxc5 {[%clk 0:01:04]} 25. Nxc5 {[%clk 0:00:38]}  Qb4 {[%clk 0:01:04]} 26. Qxb4 {[%clk 0:00:16]}  axb4 {[%clk 0:01:05]} 27. Nd3 {[%clk 0:00:16]}  Rxa2 {[%clk 0:01:00]} 28. Nxb4 {[%clk 0:00:16]}  Ra4 {[%clk 0:00:50]} 29. Nc6 {[%clk 0:00:16]}  Rd5 {[%clk 0:00:50]} 30. b3 {[%clk 0:00:16]}  Ra8 {[%clk 0:00:32]} 31. Rxd4 {[%clk 0:00:14]}  Rc8 {[%clk 0:00:29]} 32. Rxd5 {[%clk 0:00:14]}  Nxd5 {[%clk 0:00:30]} 33. Nd4 {[%clk 0:00:14]}  Rc3 {[%clk 0:00:28]} 34. Rd1 {[%clk 0:00:12]}  Nb4 {[%clk 0:00:25]} 35. h4 {[%clk 0:00:12]}  Nd5 {[%clk 0:00:18]} 36. Kh2 {[%clk 0:00:10]}  g6 {[%clk 0:00:17]} 37. Rd2 {[%clk 0:00:09]}  Ke7 {[%clk 0:00:17]} 38. Rb2 {[%clk 0:00:09]}  Rd3 {[%clk 0:00:15]} 39. Nf3 {[%clk 0:00:09]}  f6 {[%clk 0:00:14]} 40. b4 {[%clk 0:00:09]}  Kd7 {[%clk 0:00:15]} 41. b5 {[%clk 0:00:09]}  Nb6 {[%clk 0:00:14]} 42. Nd2 {[%clk 0:00:09]}  e5 {[%clk 0:00:13]} 43. Ne4 {[%clk 0:00:09]}  Kc8 {[%clk 0:00:10]} 44. Nxf6 {[%clk 0:00:08]}  Nc4 {[%clk 0:00:08]} 45. Rc2 {[%clk 0:00:08]} 1-0


[Site "https://www.chess.com"]

[Event "Titled Tuesday Blitz June 14 Late 2022"]
[White "Injac, Teodora"]
[Black "Sarana, Alexey"]
[WhiteFideId "932400"]
[BlackFideId "24133795"]
[WhiteElo "2278"]
[BlackElo "2666"]
[Result "1-0"]
[Round "03"]
[TimeControl "180+1"]
[Date "2022.06.14"]
[WhiteClock "0:00:32"]
[BlackClock "0:00:07"]

1. Nf3 {[%clk 0:03:00]}  d5 {[%clk 0:03:00]} 2. g3 {[%clk 0:03:01]}  g6 {[%clk 0:03:00]} 3. Bg2 {[%clk 0:02:59]}  Bg7 {[%clk 0:03:01]} 4. d4 {[%clk 0:02:59]}  c6 {[%clk 0:03:01]} 5. O-O {[%clk 0:02:59]}  Nf6 {[%clk 0:03:01]} 6. c4 {[%clk 0:02:59]}  dxc4 {[%clk 0:03:02]} 7. a4 {[%clk 0:02:55]}  Ne4 {[%clk 0:03:01]} 8. Nc3 {[%clk 0:02:52]}  Nd6 {[%clk 0:02:57]} 9. e4 {[%clk 0:02:50]}  Bg4 {[%clk 0:02:57]} 10. Be3 {[%clk 0:02:44]}  Qc8 {[%clk 0:02:56]} 11. Re1 {[%clk 0:02:37]}  O-O {[%clk 0:02:55]} 12. Qc2 {[%clk 0:02:31]}  Na6 {[%clk 0:02:55]} 13. Ne5 {[%clk 0:02:22]}  Bh3 {[%clk 0:02:32]} 14. Qe2 {[%clk 0:02:15]}  Bxg2 {[%clk 0:02:24]} 15. Kxg2 {[%clk 0:02:16]}  Qe6 {[%clk 0:02:24]} 16. Bf4 {[%clk 0:02:05]}  Nb4 {[%clk 0:02:18]} 17. Rad1 {[%clk 0:02:04]}  Rad8 {[%clk 0:02:08]} 18. d5 {[%clk 0:02:01]}  cxd5 {[%clk 0:02:08]} 19. exd5 {[%clk 0:02:01]}  Qc8 {[%clk 0:02:08]} 20. h4 {[%clk 0:01:50]}  h5 {[%clk 0:01:55]} 21. Qf3 {[%clk 0:01:30]}  Qf5 {[%clk 0:01:49]} 22. Nb5 {[%clk 0:01:15]}  Rc8 {[%clk 0:01:01]} 23. Nd4 {[%clk 0:01:13]}  Qf6 {[%clk 0:00:47]} 24. Nd7 {[%clk 0:01:13]}  Qxd4 {[%clk 0:00:45]} 25. Rxd4 {[%clk 0:01:14]}  Bxd4 {[%clk 0:00:46]} 26. Nxf8 {[%clk 0:01:11]}  Kxf8 {[%clk 0:00:40]} 27. Bh6+ {[%clk 0:01:07]}  Ke8 {[%clk 0:00:36]} 28. Bg5 {[%clk 0:01:07]}  Nf5 {[%clk 0:00:35]} 29. Bxe7 {[%clk 0:01:02]}  Nd3 {[%clk 0:00:30]} 30. Re2 {[%clk 0:00:46]}  Kd7 {[%clk 0:00:17]} 31. d6 {[%clk 0:00:43]}  Rc6 {[%clk 0:00:16]} 32. Qd5 {[%clk 0:00:38]}  Nxd6 {[%clk 0:00:05]} 33. Bxd6 {[%clk 0:00:37]}  Rxd6 {[%clk 0:00:06]} 34. Qxf7+ {[%clk 0:00:37]}  Kc6 {[%clk 0:00:05]} 35. Qxc4+ {[%clk 0:00:37]}  Bc5 {[%clk 0:00:06]} 36. Qb5+ {[%clk 0:00:33]}  Kc7 {[%clk 0:00:06]} 37. Re7+ {[%clk 0:00:33]}  Kd8 {[%clk 0:00:07]} 38. Qe8# {[%clk 0:00:32]} 1-0


[Site "https://www.chess.com"]

[Event "Titled Tuesday Blitz June 14 Late 2022"]
[White "Ivic, Velimir"]
[Black "Daggupati, Balaji"]
[WhiteFideId "950122"]
[BlackFideId "2090759"]
[WhiteElo "2610"]
[BlackElo "2716"]
[Result "1-0"]
[Round "03"]
[TimeControl "180+1"]
[Date "2022.06.14"]
[WhiteClock "0:00:02"]
[BlackClock "0:00:02"]

1. e4 {[%clk 0:03:00]}  c5 {[%clk 0:02:59]} 2. Nf3 {[%clk 0:03:01]}  e6 {[%clk 0:02:59]} 3. d4 {[%clk 0:03:01]}  cxd4 {[%clk 0:03:00]} 4. Nxd4 {[%clk 0:03:02]}  Nf6 {[%clk 0:03:01]} 5. Nc3 {[%clk 0:03:02]}  Nc6 {[%clk 0:03:02]} 6. Nxc6 {[%clk 0:03:02]}  bxc6 {[%clk 0:03:03]} 7. e5 {[%clk 0:03:02]}  Nd5 {[%clk 0:03:03]} 8. Ne4 {[%clk 0:03:03]}  Qc7 {[%clk 0:03:04]} 9. f4 {[%clk 0:03:03]}  Qb6 {[%clk 0:03:05]} 10. c4 {[%clk 0:03:04]}  Ne3 {[%clk 0:03:05]} 11. Qd3 {[%clk 0:03:02]}  Nf5 {[%clk 0:03:05]} 12. Be2 {[%clk 0:02:56]}  Bb7 {[%clk 0:02:56]} 13. Bd2 {[%clk 0:02:46]}  Be7 {[%clk 0:02:33]} 14. O-O-O {[%clk 0:02:42]}  O-O-O {[%clk 0:02:30]} 15. g4 {[%clk 0:02:17]}  Nd4 {[%clk 0:02:29]} 16. Bc3 {[%clk 0:02:00]}  c5 {[%clk 0:02:23]} 17. Kb1 {[%clk 0:01:51]}  d5 {[%clk 0:02:20]} 18. exd6 {[%clk 0:01:50]}  Bxd6 {[%clk 0:02:16]} 19. Rhf1 {[%clk 0:01:41]}  Bc7 {[%clk 0:01:56]} 20. Qe3 {[%clk 0:01:40]}  h6 {[%clk 0:01:43]} 21. Bd3 {[%clk 0:01:31]}  Rhe8 {[%clk 0:01:36]} 22. Ng3 {[%clk 0:01:29]}  e5 {[%clk 0:01:11]} 23. f5 {[%clk 0:01:22]}  e4 {[%clk 0:01:11]} 24. Nxe4 {[%clk 0:01:14]}  Re7 {[%clk 0:00:28]} 25. g5 {[%clk 0:01:10]}  hxg5 {[%clk 0:00:25]} 26. f6 {[%clk 0:01:08]}  gxf6 {[%clk 0:00:24]} 27. Qh3+ {[%clk 0:01:07]}  f5 {[%clk 0:00:24]} 28. Nxg5 {[%clk 0:01:06]}  Kb8 {[%clk 0:00:22]} 29. Bxf5 {[%clk 0:01:01]}  Nxf5 {[%clk 0:00:22]} 30. Qxf5 {[%clk 0:01:00]}  Rxd1+ {[%clk 0:00:19]} 31. Rxd1 {[%clk 0:01:01]}  a6 {[%clk 0:00:13]} 32. Ka1 {[%clk 0:00:45]}  Re2 {[%clk 0:00:13]} 33. h4 {[%clk 0:00:41]}  Rh2 {[%clk 0:00:14]} 34. Nxf7 {[%clk 0:00:28]}  Rxh4 {[%clk 0:00:14]} 35. Ne5 {[%clk 0:00:29]}  Qd6 {[%clk 0:00:10]} 36. Nd7+ {[%clk 0:00:21]}  Ka7 {[%clk 0:00:09]} 37. Qb1 {[%clk 0:00:13]}  Qc6 {[%clk 0:00:08]} 38. Ne5 {[%clk 0:00:11]}  Bxe5 {[%clk 0:00:08]} 39. Bxe5 {[%clk 0:00:12]}  Rxc4 {[%clk 0:00:08]} 40. Bc3 {[%clk 0:00:12]}  Rg4 {[%clk 0:00:02]} 41. Qc1 {[%clk 0:00:12]}  Qe4 {[%clk 0:00:03]} 42. Qd2 {[%clk 0:00:11]}  Qd5 {[%clk 0:00:02]} 43. Qe1 {[%clk 0:00:09]}  Qe4 {[%clk 0:00:02]} 44. Qf2 {[%clk 0:00:08]}  Qc4 {[%clk 0:00:01]} 45. a3 {[%clk 0:00:08]}  Qb5 {[%clk 0:00:02]} 46. Rc1 {[%clk 0:00:07]}  Rc4 {[%clk 0:00:02]} 47. Qe3 {[%clk 0:00:07]}  Qb3 {[%clk 0:00:03]} 48. Qe7 {[%clk 0:00:07]}  Qb5 {[%clk 0:00:03]} 49. Rd1 {[%clk 0:00:07]}  Qb3 {[%clk 0:00:03]} 50. Rd7 {[%clk 0:00:07]}  Qb5 {[%clk 0:00:04]} 51. Rc7 {[%clk 0:00:06]}  Rg4 {[%clk 0:00:03]} 52. Qe1 {[%clk 0:00:06]}  Qb3 {[%clk 0:00:03]} 53. Be5 {[%clk 0:00:06]}  Qb5 {[%clk 0:00:03]} 54. Rf7 {[%clk 0:00:05]}  Rc4 {[%clk 0:00:03]} 55. Rf8 {[%clk 0:00:05]}  Re4 {[%clk 0:00:02]} 56. Bb8+ {[%clk 0:00:05]}  Kb6 {[%clk 0:00:03]} 57. Qg3 {[%clk 0:00:02]}  Re6 {[%clk 0:00:02]} 58. Qc7# {[%clk 0:00:02]} 1-0


[Site "https://www.chess.com"]

[Event "Titled Tuesday Blitz June 14 Late 2022"]
[White "Kim, Sergey"]
[Black "Titichoca Daza, Daniel"]
[WhiteFideId "13700570"]
[BlackFideId "3309550"]
[WhiteElo "2582"]
[BlackElo "1912"]
[Result "0-1"]
[Round "03"]
[TimeControl "180+1"]
[Date "2022.06.15"]
[WhiteClock "0:00:04"]
[BlackClock "0:00:04"]

1. d4 {[%clk 0:03:00]}  g6 {[%clk 0:02:58]} 2. c4 {[%clk 0:03:01]}  Bg7 {[%clk 0:02:59]} 3. Nc3 {[%clk 0:03:01]}  d6 {[%clk 0:02:57]} 4. e4 {[%clk 0:03:00]}  Nf6 {[%clk 0:02:56]} 5. Nge2 {[%clk 0:03:00]}  O-O {[%clk 0:02:56]} 6. Ng3 {[%clk 0:03:00]}  c5 {[%clk 0:02:56]} 7. d5 {[%clk 0:03:00]}  e6 {[%clk 0:02:56]} 8. Be2 {[%clk 0:03:01]}  a6 {[%clk 0:02:50]} 9. a4 {[%clk 0:03:00]}  h5 {[%clk 0:02:44]} 10. Bg5 {[%clk 0:02:59]}  exd5 {[%clk 0:02:36]} 11. cxd5 {[%clk 0:02:58]}  Re8 {[%clk 0:02:27]} 12. O-O {[%clk 0:02:57]}  Nbd7 {[%clk 0:02:25]} 13. f4 {[%clk 0:02:56]}  Qb6 {[%clk 0:02:18]} 14. Qd2 {[%clk 0:02:53]}  Nh7 {[%clk 0:02:17]} 15. Bh4 {[%clk 0:02:52]}  Ndf6 {[%clk 0:01:27]} 16. e5 {[%clk 0:02:43]}  Ng4 {[%clk 0:01:23]} 17. a5 {[%clk 0:02:42]}  Qc7 {[%clk 0:01:22]} 18. h3 {[%clk 0:02:35]}  Nh6 {[%clk 0:01:20]} 19. Bc4 {[%clk 0:02:17]}  Nf5 {[%clk 0:01:14]} 20. Nxf5 {[%clk 0:02:16]}  Bxf5 {[%clk 0:01:15]} 21. e6 {[%clk 0:02:13]}  Bd4+ {[%clk 0:01:11]} 22. Bf2 {[%clk 0:02:02]}  fxe6 {[%clk 0:01:11]} 23. dxe6 {[%clk 0:01:51]}  Bxe6 {[%clk 0:01:12]} 24. Nd5 {[%clk 0:01:49]}  Qf7 {[%clk 0:01:11]} 25. Bxd4 {[%clk 0:01:34]}  Bxd5 {[%clk 0:01:11]} 26. Bxd5 {[%clk 0:01:26]}  Qxd5 {[%clk 0:01:10]} 27. Bc3 {[%clk 0:01:27]}  Qxd2 {[%clk 0:01:10]} 28. Bxd2 {[%clk 0:01:27]}  Nf6 {[%clk 0:01:03]} 29. f5 {[%clk 0:01:26]}  Ne4 {[%clk 0:01:01]} 30. Bc3 {[%clk 0:01:19]}  Ng3 {[%clk 0:00:58]} 31. Rfd1 {[%clk 0:01:17]}  Nxf5 {[%clk 0:00:57]} 32. g4 {[%clk 0:01:16]}  hxg4 {[%clk 0:00:54]} 33. hxg4 {[%clk 0:01:16]}  Nd4 {[%clk 0:00:45]} 34. Bxd4 {[%clk 0:01:16]}  cxd4 {[%clk 0:00:45]} 35. Rxd4 {[%clk 0:01:17]}  Re2 {[%clk 0:00:44]} 36. Rxd6 {[%clk 0:01:16]}  Rxb2 {[%clk 0:00:43]} 37. Rxg6+ {[%clk 0:01:15]}  Kh7 {[%clk 0:00:43]} 38. Rg5 {[%clk 0:01:10]}  Rc8 {[%clk 0:00:42]} 39. Rd1 {[%clk 0:00:57]}  Rcc2 {[%clk 0:00:34]} 40. Rd7+ {[%clk 0:00:49]}  Kh6 {[%clk 0:00:34]} 41. Rh5+ {[%clk 0:00:49]}  Kg6 {[%clk 0:00:34]} 42. Rd6+ {[%clk 0:00:49]}  Kf7 {[%clk 0:00:34]} 43. Rf5+ {[%clk 0:00:37]}  Ke7 {[%clk 0:00:34]} 44. Rg6 {[%clk 0:00:33]}  Rb1+ {[%clk 0:00:29]} 45. Rf1 {[%clk 0:00:33]}  Rxf1+ {[%clk 0:00:28]} 46. Kxf1 {[%clk 0:00:33]}  Kd7 {[%clk 0:00:21]} 47. g5 {[%clk 0:00:30]}  Rc5 {[%clk 0:00:21]} 48. Kf2 {[%clk 0:00:28]}  Rxa5 {[%clk 0:00:22]} 49. Kf3 {[%clk 0:00:29]}  Ra3+ {[%clk 0:00:19]} 50. Kf4 {[%clk 0:00:29]}  Ra1 {[%clk 0:00:19]} 51. Rg8 {[%clk 0:00:23]}  b5 {[%clk 0:00:18]} 52. g6 {[%clk 0:00:23]}  Rg1 {[%clk 0:00:17]} 53. Kf5 {[%clk 0:00:23]}  a5 {[%clk 0:00:14]} 54. Ra8 {[%clk 0:00:22]}  a4 {[%clk 0:00:13]} 55. g7 {[%clk 0:00:22]}  Kc6 {[%clk 0:00:10]} 56. g8=Q {[%clk 0:00:21]}  Rxg8 {[%clk 0:00:09]} 57. Rxg8 {[%clk 0:00:22]}  Kc5 {[%clk 0:00:04]} 58. Ke4 {[%clk 0:00:22]}  Kc4 {[%clk 0:00:04]} 59. Rc8+ {[%clk 0:00:21]}  Kb3 {[%clk 0:00:05]} 60. Kd3 {[%clk 0:00:21]}  a3 {[%clk 0:00:05]} 61. Rc3+ {[%clk 0:00:19]}  Kb2 {[%clk 0:00:05]} 62. Rc2+ {[%clk 0:00:19]}  Kb1 {[%clk 0:00:03]} 63. Rc3 {[%clk 0:00:10]}  a2 {[%clk 0:00:03]} 64. Rb3+ {[%clk 0:00:10]}  Kc1 {[%clk 0:00:03]} 65. Ra3 {[%clk 0:00:10]}  Kb2 {[%clk 0:00:04]} 66. Ra5 {[%clk 0:00:04]}  b4 {[%clk 0:00:04]} 0-1


[Site "https://www.chess.com"]